bitfinex-derivatives/quotes_BNBF0:USTF0_20250424
["timestamp","ask_amount","ask_price","bid_price","bid_amount"]
[1745469666909,1.25782017,605.46,604.01,0.58044732]
[1745469667106,1.25782017,605.46,603.95,1.412]
[1745469667303,1.25782017,605.46,603.96,0.58044531]
[1745469667509,1.25782017,605.04,603.97,0.58044531]
[1745469667809,1.25782017,605.04,603.98,0.58044531]
[1745469668110,1.25782017,605.04,603.99,0.58044531]
[1745469668308,1.25782017,605.04,604.0,0.58044531]
[1745469668608,1.25782017,605.04,604.01,0.58044531]
[1745469668804,1.25782017,605.04,604.02,0.58044531]
[1745469669005,1.25782017,605.04,604.03,0.58044531]
[1745469669304,1.25782017,605.04,604.04,0.58044531]
[1745469669510,1.25782017,605.04,603.95,1.412]
[1745469669809,1.25782017,605.04,603.96,0.58042888]
[1745469670005,1.25782017,605.47,603.97,0.58042888]
[1745469670210,1.25782017,605.47,603.98,0.58042888]
[1745469670510,1.25782017,605.47,603.95,1.412]
[1745469670711,0.28794837,605.46,603.96,0.58047071]
[1745469671011,0.28794837,605.46,603.97,0.58047071]
[1745469671207,0.28794837,605.46,603.98,0.58047071]
[1745469671405,0.28794837,605.46,603.95,1.412]
[1745469671606,0.28794837,605.46,603.96,0.58055713]
[1745469671807,0.28794837,605.46,603.97,0.58055713]
[1745469672009,0.28794837,605.46,603.98,0.58055713]
[1745469672211,0.28794837,605.46,603.95,1.412]
[1745469672411,0.28794837,605.46,603.96,0.5806272]
[1745469672611,0.28794837,605.46,603.97,0.5806272]
[1745469672806,0.28794837,605.46,603.98,0.5806272]
[1745469673011,0.28794837,605.46,603.99,0.5806272]
[1745469673310,0.28794837,605.46,603.95,1.412]
[1745469673510,0.28794837,605.46,603.96,0.58063551]
[1745469673711,0.28794837,605.46,603.97,0.58063551]
[1745469673905,0.28794837,605.46,603.98,0.58063551]
[1745469674106,0.28794837,605.46,603.95,1.412]
[1745469674309,0.28794837,605.46,603.99,1.524]
[1745469675512,1.25782017,605.56,603.99,1.524]
[1745469676707,0.28793646,605.55,603.99,1.524]
[1745469677709,0.28793646,605.55,604.0,0.58035951]
[1745469677908,0.28793646,605.55,603.99,1.524]
[1745469678106,0.28793646,605.55,604.0,0.58034101]
[1745469678313,0.28793646,605.55,604.0,1.633]
[1745469678614,1.25782017,605.67,604.0,1.633]
[1745469679815,0.28792216,605.66,604.0,1.633]
[1745469680122,1.25782017,605.53,604.0,1.633]
[1745469682216,1.25782017,605.53,604.01,1.09]
[1745469682813,0.28793765,605.52,604.01,1.09]
[1745469683318,1.25782017,605.42,604.01,1.09]
[1745469685219,1.25782017,605.5,604.01,1.09]
[1745469685719,0.28793646,605.49,604.01,1.09]
[1745469687320,1.25782017,605.34,604.01,1.09]
[1745469688820,0.28795075,605.33,604.01,1.09]
[1745469689824,1.54577092,605.33,604.01,1.09]
[1745469690523,1.25782017,605.33,604.01,1.09]
[1745469690923,0.28795194,605.32,604.01,1.09]
[1745469693525,1.25782017,605.33,604.01,1.09]
[1745469693721,0.28795194,605.31,604.01,1.09]
[1745469694226,0.28795194,605.31,604.0,1.633]
[1745469695528,1.25782017,605.08,604.0,1.633]
[1745469696023,1.25782017,605.08,604.01,1.117]
[1745469697529,1.25782017,605.08,604.02,1.482]
[1745469697824,0.28798173,605.07,604.02,1.482]
[1745469699534,1.25782017,605.08,604.02,1.482]
[1745469700834,2.13291763,605.7,604.02,1.482]
[1745469700835,1.25782017,605.01,604.02,1.482]
[1745469703730,2.13291763,605.61,604.02,1.482]
[1745469703731,1.25782017,605.05,604.02,2.811]
[1745469703935,1.54580905,605.05,604.02,2.811]
[1745469705537,1.25782017,605.05,604.02,2.811]
[1745469705831,1.54580428,605.05,604.02,4.359]
[1745469706240,1.25782017,604.96,604.02,4.359]
[1745469707637,1.25782017,604.96,604.02,1.548]
[1745469708739,1.25782017,605.18,604.02,1.548]
[1745469709239,1.25782017,605.18,603.42,1.04215495]
[1745469709438,1.25782017,605.18,603.43,0.88433511]
[1745469709639,1.25782017,605.18,603.44,0.88433511]
[1745469709839,0.28803893,605.17,603.45,0.88433511]
[1745469710039,0.28803893,605.17,603.46,0.58023119]
[1745469710235,0.28803893,605.17,603.47,0.88433511]
[1745469710436,0.28803893,605.17,603.48,0.88433511]
[1745469710639,0.28803893,605.17,603.49,0.88433511]
[1745469710836,0.28803893,605.17,603.5,0.88433511]
[1745469711039,0.28803893,605.17,603.51,0.88433511]
[1745469711239,0.28803893,605.17,603.52,0.88433511]
[1745469711436,0.28803893,605.17,603.53,0.88433511]
[1745469711636,1.25782017,605.18,603.54,0.88433511]
[1745469711840,1.25782017,605.18,603.55,0.88433511]
[1745469712035,1.25782017,605.18,603.56,0.88433511]
[1745469712240,1.25782017,605.18,603.57,0.58023119]
[1745469712436,1.25782017,605.18,603.15,1.344]
[1745469712437,1.25782017,605.18,603.58,0.58023119]
[1745469712637,1.25782017,605.18,603.59,0.58023119]
[1745469712838,0.28802225,605.17,603.6,0.58023119]
[1745469713038,0.28802225,605.17,603.61,0.58023119]
[1745469713244,0.28802225,605.17,603.62,0.58023119]
[1745469713439,0.28802225,605.17,603.63,0.58023119]
[1745469713744,0.28802225,605.17,603.64,0.58023119]
[1745469714043,0.28802225,605.17,603.65,0.58023119]
[1745469714342,0.28802225,605.17,603.66,0.58023119]
[1745469714539,0.28802225,605.17,603.49,0.28802225]
[1745469714540,1.25782017,605.18,603.67,0.58023119]
[1745469714741,1.25782017,605.18,603.68,0.58023119]
[1745469714941,1.25782017,605.18,603.69,0.58023119]
[1745469715143,2.13291763,605.85,603.15,2.37]
[1745469715144,1.25782017,605.3,603.7,0.58023119]
[1745469715342,1.25782017,605.3,603.71,0.58023119]
[1745469715541,1.25782017,605.3,603.72,0.58023119]
[1745469715745,0.28800556,605.29,603.73,0.58023119]
[1745469715946,0.28800556,605.29,603.74,0.58023119]
[1745469716142,0.28800556,605.29,603.75,0.58054357]
[1745469716349,0.28800556,605.29,603.76,0.58054357]
[1745469716542,0.28800556,605.29,603.77,0.58054357]
[1745469716746,0.28800556,605.29,603.78,0.58054357]
[1745469716946,0.28800556,605.29,603.79,0.58054357]
[1745469717146,0.28800556,605.29,603.8,0.58054357]
[1745469717447,0.28800556,605.29,603.81,0.58054357]
[1745469717640,0.28800556,605.29,603.82,0.58054357]
[1745469717841,1.25782017,605.23,603.83,0.58054357]
[1745469718042,1.25782017,605.23,603.84,0.58054357]
[1745469718242,1.25782017,605.23,603.85,0.58054357]
[1745469718448,1.25782017,605.23,603.86,0.58054357]
[1745469718643,1.25782017,605.23,603.87,0.58054357]
[1745469718843,1.25782017,605.23,603.88,0.58054357]
[1745469719047,1.25782017,605.23,603.89,0.58054357]
[1745469719248,1.25782017,605.23,603.9,0.58054357]
[1745469719449,1.25782017,605.23,603.91,0.58054357]
[1745469719645,1.25782017,605.23,603.92,0.58054357]
[1745469719844,1.25782017,605.23,603.93,0.58054357]
[1745469720046,1.25782017,605.23,603.94,0.58054357]
[1745469720249,1.25782017,605.23,603.95,0.58081139]
[1745469720551,1.25782017,605.23,603.96,0.58081139]
[1745469720746,1.25782017,605.23,603.97,0.58081139]
[1745469720947,1.25782017,604.99,603.98,0.58081139]
[1745469721151,1.25782017,604.99,603.99,0.58081139]
[1745469721352,1.25782017,604.99,604.0,0.58083223]
[1745469721544,1.25782017,604.99,604.01,0.58083223]
[1745469721749,1.25782017,604.99,603.45,1.04215495]
[1745469721955,1.54582812,604.99,603.5,0.28800675]
[1745469722153,1.54582812,604.99,603.51,0.88498753]
[1745469722448,1.54582812,604.99,603.52,0.5808633]
[1745469722652,1.54582812,604.99,603.53,0.5808633]
[1745469722852,1.54582812,604.99,603.54,0.5808633]
[1745469723052,1.54582812,604.99,603.55,0.88497213]
[1745469723249,1.54582812,604.99,603.56,0.5808479]
[1745469723555,1.25782017,604.99,603.57,0.5808479]
[1745469723851,1.25782017,605.0,603.58,0.88497213]
[1745469724054,1.25782017,605.0,603.59,0.88497213]
[1745469724252,1.25782017,605.0,603.6,0.88497213]
[1745469724451,1.25782017,605.0,603.61,0.88497213]
[1745469724652,1.25782017,605.0,603.62,0.88497213]
[1745469724848,0.28805324,604.99,603.63,0.88497213]
[1745469725049,0.28805324,604.99,603.64,0.88497213]
[1745469725256,0.28805324,604.99,603.65,0.88497213]
[1745469725449,0.28805324,604.99,603.66,0.88497213]
[1745469725654,0.28805324,604.99,603.67,0.5808479]
[1745469725856,0.28805324,604.99,603.68,0.5808479]
[1745469726057,0.28805324,604.99,603.69,0.5808479]
[1745469726352,0.28805324,604.99,603.7,0.5808479]
[1745469726558,1.25782017,604.97,603.71,0.5808479]
[1745469726751,1.25782017,604.97,603.72,0.5808479]
[1745469726952,1.25782017,604.97,603.73,0.5808479]
[1745469727254,1.25782017,604.97,603.74,0.5808479]
[1745469727453,1.25782017,604.97,603.75,0.5808479]
[1745469727652,1.25782017,604.97,603.76,0.5808479]
[1745469727858,0.28806039,604.96,603.77,0.5808479]
[1745469728057,0.28806039,604.96,603.78,0.5808479]
[1745469728258,0.28806039,604.96,603.79,0.5808479]
[1745469728457,0.28806039,604.96,603.8,0.5808479]
[1745469728657,0.28806039,604.96,603.81,0.5808479]
[1745469728860,1.25782017,604.92,603.82,0.5808479]
[1745469729055,1.25782017,604.92,603.83,0.5808479]
[1745469729259,1.25782017,604.92,603.84,0.5808479]
[1745469729459,1.25782017,604.92,603.85,0.5808479]
[1745469729659,1.25782017,604.92,603.86,0.5808479]
[1745469729860,1.25782017,604.92,603.87,0.5808479]
[1745469730160,0.28805324,604.91,603.88,0.5808479]
[1745469730354,0.28805324,604.91,603.89,0.5808479]
[1745469730559,0.28805324,604.91,603.9,0.5808479]
[1745469730760,0.28805324,604.91,603.91,0.5808479]
[1745469730961,0.28805324,604.91,603.35,1.04215495]
[1745469732161,0.28805324,604.91,603.35,0.17804466]
[1745469732360,0.28805324,604.91,603.31,0.17804466]
[1745469732562,1.25782017,604.98,603.31,0.17804466]
[1745469732961,0.28847947,604.9,603.31,0.17804466]
[1745469733161,1.25782017,604.98,603.31,0.17804466]
[1745469733960,0.28850817,604.97,603.31,0.17804466]
[1745469736468,0.28850817,604.97,603.22,1.209]
[1745469738662,1.25782017,605.16,603.22,1.209]
[1745469739465,2.13291763,606.19,603.22,1.209]
[1745469739466,1.25782017,605.57,603.22,1.209]
[1745469739968,0.28851056,605.15,603.22,1.209]
[1745469740167,1.25782017,605.57,603.22,1.209]
[1745469741368,0.28845437,605.56,603.22,1.209]
[1745469744671,1.25782017,605.83,603.22,1.209]
[1745469745769,0.28841851,605.82,603.22,1.209]
[1745469747075,1.25782017,605.58,603.22,1.209]
[1745469748871,0.28845078,605.57,603.22,1.209]
[1745469750578,1.25782017,605.61,603.22,1.209]
[1745469751882,0.28844719,605.6,603.22,1.209]
[1745469752080,1.25782017,605.55,603.22,1.209]
[1745469754782,2.13291763,605.71,603.22,1.209]
[1745469754783,1.25782017,605.45,603.22,1.209]
[1745469757586,1.25782017,604.82,603.22,1.209]
[1745469757983,1.25782017,604.82,603.08,1.541]
[1745469758183,1.25782017,604.82,603.08,0.47526664]
[1745469758383,1.25782017,604.82,603.03,0.98]
[1745469759186,0.28846393,605.44,603.03,0.98]
[1745469759187,1.25782017,604.99,603.03,0.98]
[1745469761486,1.25782017,604.94,603.03,0.98]
[1745469764088,1.25782017,604.71,603.03,0.98]
[1745469766392,1.25782017,604.71,602.93,2.59]
[1745469766592,1.25782017,604.72,602.93,2.59]
[1745469768196,0.2885979,604.71,602.93,2.59]
[1745469768994,0.2885979,604.71,602.93,3.771]
[1745469769495,1.25782017,603.61,602.93,3.771]
[1745469769695,1.25782017,603.61,602.93,2.482]
[1745469769995,1.25782017,603.61,602.93,1.181]
[1745469770994,1.25782017,603.45,602.93,1.181]
[1745469773002,0.28873318,603.44,602.93,1.181]
[1745469773900,1.25782017,603.38,602.93,1.181]
[1745469775002,0.28872959,603.37,602.93,1.181]
[1745469777604,1.25782017,603.47,602.93,1.181]
[1745469778204,1.25782017,603.63,602.93,1.181]
[1745469778905,0.28869725,603.62,602.93,1.181]
[1745469780607,1.25782017,603.63,602.93,1.181]
[1745469780807,1.25782017,603.78,602.93,1.181]
[1745469781807,0.28867929,603.77,602.93,1.181]
[1745469783607,1.25782017,603.84,602.93,1.181]
[1745469785011,0.28867211,603.83,602.93,1.181]
[1745469785307,1.25782017,603.76,602.93,1.181]
[1745469788011,1.25782017,603.7,602.93,1.181]
[1745469789816,0.28869845,603.69,602.93,1.181]
[1745469790316,1.25782017,603.59,602.93,1.181]
[1745469792518,1.25782017,603.51,602.93,1.181]
[1745469793917,0.28872121,603.5,602.93,1.181]
[1745469795717,1.25782017,603.61,602.93,1.181]
[1745469796919,0.28870923,603.6,602.93,1.181]
[1745469798720,1.25782017,603.77,602.93,1.181]
[1745469799823,0.28868288,603.76,602.93,1.181]
[1745469804527,1.25782017,603.71,602.93,1.181]
[1745469806621,1.25782017,603.65,602.93,1.181]
[1745469807431,1.25782017,603.65,602.93,0.29260538]
[1745469807625,1.25782017,603.65,602.31,1.423]
[1745469808821,0.28874876,603.64,602.32,0.60387349]
[1745469809022,0.28874876,603.64,602.33,0.60387349]
[1745469809224,0.28874876,603.64,602.31,1.423]
[1745469809422,0.28874876,603.64,602.32,0.60353831]
[1745469809623,0.28874876,603.64,602.33,1.26285935]
[1745469809821,1.25782017,603.11,602.34,0.60353831]
[1745469810026,1.25782017,603.11,602.35,0.60353831]
[1745469810228,1.25782017,603.11,602.31,1.423]
[1745469810522,1.25782017,603.11,602.32,0.60326584]
[1745469810728,1.25782017,603.11,602.33,0.60326584]
[1745469811029,1.25782017,603.11,602.31,1.423]
[1745469811929,1.25782017,603.66,602.31,1.423]
[1745469812121,0.28880028,603.42,602.31,1.423]
[1745469812326,1.25782017,603.66,602.31,1.423]
[1745469813630,0.28873438,603.65,602.31,1.423]
[1745469814729,1.25782017,603.53,602.31,1.423]
[1745469816931,1.25782017,603.73,602.31,1.423]
[1745469817931,0.288726,603.72,602.31,1.423]
[1745469819631,1.25782017,603.86,602.31,1.423]
[1745469820628,1.25782017,603.9,602.31,1.423]
[1745469820830,1.25782017,603.9,602.32,0.60220986]
[1745469821032,0.28871043,603.85,602.33,0.60220986]
[1745469821231,0.28871043,603.85,602.31,1.423]
[1745469821532,0.28871043,603.85,602.32,0.60215746]
[1745469821732,0.28871043,603.85,602.33,0.60215746]
[1745469822032,0.28871043,603.85,602.34,0.60215746]
[1745469822232,0.28871043,603.85,602.35,0.60215746]
[1745469822425,0.28871043,603.85,602.36,0.60215746]
[1745469822628,0.28871043,603.85,602.31,1.423]
[1745469822927,0.28871043,603.85,602.32,0.60203965]
[1745469823132,0.28871043,603.85,602.33,0.60203965]
[1745469823331,0.28871043,603.85,602.34,0.60203965]
[1745469823533,0.28871043,603.85,602.31,1.423]
[1745469823734,0.28871043,603.85,602.32,1.19989531]
[1745469823929,0.28871043,603.85,602.33,0.60199061]
[1745469824131,0.28871043,603.85,602.34,0.60199061]
[1745469824331,0.28871043,603.85,602.31,1.423]
[1745469824529,0.28871043,603.85,602.32,1.19961474]
[1745469824732,0.28871043,603.85,602.33,1.19961474]
[1745469825030,0.28871043,603.85,602.34,1.19961474]
[1745469825231,0.28871043,603.85,602.35,1.19961474]
[1745469825431,0.28871043,603.85,602.36,0.6018334]
[1745469825628,0.28871043,603.85,602.37,0.6018334]
[1745469825828,0.28871043,603.85,602.38,0.6018334]
[1745469826033,0.28871043,603.85,602.39,0.6018334]
[1745469826233,0.28871043,603.85,602.4,0.6018334]
[1745469826429,0.28871043,603.85,602.31,1.423]
[1745469826634,0.28871043,603.85,602.32,1.19920419]
[1745469826828,0.28871043,603.85,602.33,1.19920419]
[1745469827030,0.28871043,603.85,602.34,0.60162689]
[1745469827230,0.28871043,603.85,602.35,0.60162689]
[1745469827433,0.28871043,603.85,602.36,0.60162689]
[1745469827733,0.28871043,603.85,602.37,0.60162689]
[1745469827931,0.28871043,603.85,602.38,0.60162689]
[1745469828134,0.28871043,603.85,602.39,0.60162689]
[1745469828333,0.28871043,603.85,602.4,0.60162689]
[1745469828534,0.28871043,603.85,602.41,0.60162689]
[1745469828736,0.28871043,603.85,602.31,1.423]
[1745469828937,0.28871043,603.85,602.32,1.19889322]
[1745469829135,0.28871043,603.85,602.33,1.19889322]
[1745469829338,0.28871043,603.85,602.34,0.60146349]
[1745469829637,0.28871043,603.85,602.35,0.60146349]
[1745469829837,0.28871043,603.85,602.36,0.60146349]
[1745469830034,0.28871043,603.85,602.37,0.60146349]
[1745469830237,0.28871043,603.85,602.38,0.60146349]
[1745469830435,0.28871043,603.85,602.39,0.60146349]
[1745469830640,0.28871043,603.85,602.4,0.60146349]
[1745469830839,0.28871043,603.85,602.31,1.423]
[1745469831037,0.28871043,603.85,602.32,1.19851763]
[1745469831240,0.28871043,603.85,602.33,1.19851763]
[1745469831443,0.28871043,603.85,602.34,1.19842358]
[1745469831637,1.25782017,604.21,602.35,0.601274]
[1745469831837,1.25782017,604.21,602.36,0.601274]
[1745469832040,2.13291763,605.08,602.31,1.423]
[1745469832041,1.25782017,604.26,602.37,0.601274]
[1745469832242,1.25782017,604.26,602.38,0.601274]
[1745469832436,1.25782017,604.26,602.39,0.601274]
[1745469832636,1.25782017,604.26,602.4,0.601274]
[1745469832939,0.28862422,604.25,602.31,1.423]
[1745469833140,0.28862422,604.25,602.4,1.361]
[1745469834642,1.25782017,604.26,602.4,1.361]
[1745469834845,1.25782017,604.02,602.4,1.361]
[1745469835047,1.25782017,604.02,602.41,0.60095129]
[1745469835241,1.25782017,604.02,602.4,1.361]
[1745469835546,1.25782017,604.02,602.41,0.60085282]
[1745469835743,1.25782017,604.02,602.4,1.361]
[1745469835940,0.28864338,604.01,602.4,1.361]
[1745469837548,1.25782017,603.87,602.4,1.361]
[1745469838854,0.28866253,603.86,602.4,1.361]
[1745469839852,1.25782017,603.82,602.4,1.361]
[1745469842859,0.28866253,603.86,602.4,1.361]
[1745469849766,1.25782017,603.95,602.4,1.361]
[1745469850866,0.28865295,603.94,602.4,1.361]
[1745469852667,1.25782017,603.95,602.4,1.361]
[1745469853068,2.13291763,604.72,602.4,1.361]
[1745469853069,1.25782017,603.83,602.4,1.361]
[1745469853869,0.28866732,603.82,602.4,1.361]
[1745469855669,1.25782017,603.83,602.4,1.361]
[1745469856065,0.28866732,603.82,602.4,1.361]
[1745469856573,1.25782017,603.67,602.4,1.361]
[1745469857972,1.25782017,603.67,602.41,0.60135748]
[1745469858171,1.25782017,603.67,602.42,0.60135748]
[1745469858366,1.25782017,603.67,602.43,0.60135748]
[1745469858568,1.25782017,603.67,602.15,0.28868648]
[1745469858772,1.25782017,603.67,602.16,1.19869972]
[1745469858972,1.25782017,603.67,602.17,1.19869972]
[1745469859174,1.25782017,603.72,602.18,1.19869972]
[1745469859373,1.25782017,603.72,602.19,1.19869972]
[1745469859672,1.25782017,603.72,602.2,0.59733528]
[1745469859874,1.25782017,603.72,602.18,1.165]
[1745469860074,0.28870444,603.71,602.18,1.165]
[1745469860274,0.28870444,603.71,602.21,1.1987848]
[1745469860974,0.28870444,603.71,602.22,0.60143584]
[1745469861173,0.28870444,603.71,602.23,1.19885923]
[1745469861368,0.28870444,603.71,602.23,0.60143615]
[1745469861570,0.28870444,603.71,602.24,0.59750494]
[1745469861773,1.25782017,603.65,602.24,2.14050494]
[1745469861970,1.25782017,603.65,602.25,0.60151986]
[1745469862376,1.25782017,603.65,602.26,0.60161791]
[1745469862776,1.25782017,603.65,602.24,1.543]
[1745469862977,0.28870564,603.64,602.25,1.19921984]
[1745469863477,0.28870564,603.64,602.25,0.59760104]
[1745469863676,0.28870564,603.64,602.26,1.19934293]
[1745469863878,0.28870564,603.64,602.24,1.543]
[1745469864478,0.28870564,603.64,602.25,1.19962754]
[1745469864674,1.25782017,603.68,602.26,1.19962754]
[1745469864877,1.25782017,603.68,602.27,1.19962754]
[1745469865074,0.28870204,603.67,602.28,1.19962754]
[1745469865273,0.28870204,603.67,602.29,1.19962754]
[1745469865479,0.28870204,603.67,602.3,1.19962754]
[1745469865671,0.28870204,603.67,602.24,1.543]
[1745469865672,0.28870204,603.67,602.31,1.19962754]
[1745469865873,0.28870204,603.67,602.32,1.19962754]
[1745469866076,0.28870204,603.67,602.33,1.19962754]
[1745469866273,0.28870204,603.67,602.34,1.19962754]
[1745469866474,0.28870204,603.67,602.35,1.19962754]
[1745469866774,1.25782017,603.66,602.36,1.19962754]
[1745469866978,1.25782017,603.66,602.37,1.19962754]
[1745469867278,1.25782017,603.66,602.38,1.19962754]
[1745469867475,1.25782017,603.66,602.39,1.19962754]
[1745469867678,1.25782017,603.66,602.4,1.19962754]
[1745469867878,1.25782017,603.66,602.41,1.19962754]
[1745469868079,1.25782017,603.66,602.42,1.19962754]
[1745469868275,1.25782017,603.66,602.43,1.19962754]
[1745469868580,1.25782017,603.66,602.44,1.19962754]
[1745469868780,1.25782017,603.61,602.45,0.60174056]
[1745469868979,1.25782017,603.61,602.24,1.543]
[1745469869180,1.25782017,603.61,602.25,0.60299512]
[1745469869380,1.25782017,603.61,602.26,1.20192842]
[1745469869573,1.25782017,603.61,602.27,1.20192842]
[1745469869778,1.25782017,603.61,602.28,1.20192842]
[1745469869975,1.25782017,603.61,602.29,1.20192842]
[1745469870278,1.25782017,603.61,602.3,1.20192842]
[1745469870477,1.25782017,603.61,602.31,1.20192842]
[1745469870678,1.25782017,603.61,602.32,1.20192842]
[1745469870874,1.25782017,603.61,602.33,0.60299512]
[1745469871077,1.25782017,603.61,602.34,0.60299512]
[1745469871280,1.25782017,603.95,602.35,0.60299512]
[1745469871479,1.25782017,603.95,602.36,0.60299512]
[1745469871676,1.25782017,603.95,602.37,0.60299512]
[1745469871981,0.28870085,603.94,602.38,0.60299512]
[1745469872176,0.28870085,603.94,602.3,1.07]
[1745469872380,0.28870085,603.94,602.31,1.20183034]
[1745469872581,0.28870085,603.94,602.32,1.20183034]
[1745469872774,0.28870085,603.94,602.3,1.07]
[1745469872775,0.28870085,603.94,602.33,0.60294556]
[1745469872977,0.28870085,603.94,602.34,0.60294556]
[1745469873182,0.28870085,603.94,602.35,0.60294556]
[1745469873383,0.28870085,603.94,602.36,0.60294556]
[1745469873578,0.28870085,603.94,602.37,0.60294556]
[1745469873783,1.25782017,603.8,602.38,0.60294556]
[1745469874078,1.25782017,603.8,602.3,1.07]
[1745469874283,1.25782017,603.8,602.31,1.20182627]
[1745469874582,1.25782017,603.8,602.32,0.60294418]
[1745469874782,1.25782017,603.8,602.33,0.60294418]
[1745469874983,0.2887248,603.79,602.34,0.60294418]
[1745469875177,0.2887248,603.79,602.35,0.60294418]
[1745469875378,0.2887248,603.79,602.36,0.60294418]
[1745469875579,0.2887248,603.79,602.34,1.263]
[1745469876285,1.25782017,603.76,602.34,1.263]
[1745469877988,0.28873318,603.75,602.34,1.263]
[1745469879591,1.25782017,603.71,602.34,1.263]
[1745469879988,1.25782017,603.71,602.35,1.52]
[1745469882588,1.25782017,603.42,602.35,1.52]
[1745469884094,0.28876792,603.41,602.35,1.52]
[1745469885594,1.25782017,603.42,602.35,1.52]
[1745469885798,1.25782017,603.82,602.35,1.52]
[1745469886097,0.28876792,603.41,602.35,1.52]
[1745469886293,1.25782017,603.82,602.35,1.52]
[1745469887095,0.28872001,603.81,602.35,1.52]
[1745469888602,1.25782017,603.93,602.35,1.52]
[1745469888802,1.25782017,603.93,602.36,0.602518]
[1745469889101,1.25782017,603.93,602.35,1.52]
[1745469889303,1.25782017,603.93,602.36,0.60248525]
[1745469889499,1.25782017,603.93,602.35,1.52]
[1745469889500,1.25782017,603.93,602.37,0.60248525]
[1745469889697,1.25782017,603.93,602.35,1.52]
[1745469889897,1.25782017,603.93,602.36,0.60247681]
[1745469890100,0.28870444,603.92,602.37,0.60247681]
[1745469890303,1.54652461,603.92,602.35,1.52]
[1745469890498,1.54652461,603.92,602.36,0.60247857]
[1745469890699,1.54652461,603.92,602.35,1.52]
[1745469890899,1.54652461,603.92,602.36,0.60247846]
[1745469891101,1.54652461,603.92,602.35,1.52]
[1745469891298,1.54652461,603.92,602.36,0.60245453]
[1745469891502,1.54652461,603.92,602.37,0.60245453]
[1745469891700,1.25782017,603.92,602.38,0.60245453]
[1745469891903,1.25782017,603.92,602.39,0.60245453]
[1745469892198,1.25782017,603.92,602.35,1.52]
[1745469892399,1.25782017,603.92,602.36,0.60241635]
[1745469892605,1.25782017,603.92,602.37,0.60241635]
[1745469892905,0.28870683,603.91,602.38,0.60241635]
[1745469893100,0.28870683,603.91,602.35,1.52]
[1745469893101,0.28870683,603.91,602.39,0.60242752]
[1745469893302,0.28870683,603.91,602.35,1.52]
[1745469893502,0.28870683,603.91,602.36,0.60242368]
[1745469893703,0.28870683,603.91,602.37,0.60242368]
[1745469893906,0.28870683,603.91,602.38,0.60242368]
[1745469894100,0.28870683,603.91,602.35,1.52]
[1745469894302,0.28870683,603.91,602.36,0.60243281]
[1745469894504,0.28870683,603.91,602.35,1.52]
[1745469894505,0.28870683,603.91,602.37,0.60243281]
[1745469894701,1.25782017,603.95,602.38,0.60243281]
[1745469894901,1.25782017,603.95,602.35,1.52]
[1745469895202,1.25782017,603.95,602.36,0.60244134]
[1745469895405,1.25782017,603.95,602.37,0.60244134]
[1745469895706,1.25782017,603.82,602.36,1.493]
[1745469898207,1.25782017,603.82,602.37,1.611]
[1745469898408,1.25782017,603.66,602.37,1.611]
[1745469900508,1.25782017,603.55,602.37,1.611]
[1745469901906,0.28874995,603.54,602.37,1.611]
[1745469903608,1.25782017,603.55,602.37,1.611]
[1745469904918,0.28874995,603.54,602.37,1.611]
[1745469906415,1.54657012,603.54,602.37,1.611]
[1745469906610,1.25782017,603.54,602.37,1.611]
[1745469906810,1.25782017,603.54,602.38,1.178]
[1745469907915,0.28875475,603.53,602.38,1.178]
[1745469909617,1.25782017,603.61,602.38,1.178]
[1745469911016,0.28874636,603.6,602.38,1.178]
[1745469911620,1.25782017,603.56,602.38,1.178]
[1745469913619,1.25782017,603.56,601.41,0.6970451]
[1745469913920,0.28875714,603.55,601.67,1.50643769]
[1745469914220,1.25782017,603.46,601.94,0.28875714]
[1745469914414,1.25782017,603.46,601.95,1.20144856]
[1745469914719,1.25782017,603.46,601.96,1.20144856]
[1745469914918,1.25782017,603.46,601.97,1.20144856]
[1745469915119,1.25782017,603.46,601.98,1.20144856]
[1745469915421,1.25782017,603.46,601.99,1.20144856]
[1745469915719,1.25782017,603.46,602.0,1.20144856]
[1745469915919,1.25782017,603.46,602.01,1.20144856]
[1745469916115,1.25782017,603.46,602.02,1.20144856]
[1745469916322,1.25782017,603.46,602.03,1.20144856]
[1745469916515,1.25782017,603.46,602.04,1.20144856]
[1745469916719,1.25782017,603.46,602.05,1.20144856]
[1745469916916,1.25782017,603.46,602.06,1.20144856]
[1745469917219,0.28883144,603.45,602.07,1.20144856]
[1745469917416,0.28883144,603.45,602.08,1.20144856]
[1745469917723,0.28883144,603.45,602.09,1.20144856]
[1745469917922,0.28883144,603.45,602.1,1.20144856]